bitfinex-derivatives/quotes_SOLF0:USTF0_20251115
["timestamp","ask_amount","ask_price","bid_price","bid_amount"]
[1763230575515,3.09788361,143.23,143.18,3.06]
[1763230576228,1.75788361,143.21,143.18,3.06]
[1763230576428,1.75788361,143.21,143.18,3.10493514]
[1763230576824,7.85866007,143.25,143.18,3.10493514]
[1763230577028,1.75788361,143.22,143.2,3.10946152]
[1763230580641,1.34,143.21,143.2,0.04946152]
[1763230582032,1.75788361,143.22,143.2,3.10946152]
[1763230582232,3.09788361,143.22,143.2,3.10946152]
[1763230582433,3.09788361,143.22,143.2,0.04946152]
[1763230582933,4.08666822,143.22,143.2,0.04946152]
[1763230583841,4.08666822,143.22,143.2,3.10946152]
[1763230584238,4.08666822,143.22,143.2,0.04946152]
[1763230584737,1.34,143.21,143.2,0.04946152]
[1763230588243,1.34,143.22,143.2,3.10946152]
[1763230589044,1.34,143.22,143.2,0.04946152]
[1763230591842,1.34,143.2,143.15,3.06]
[1763230592141,1.34,143.18,143.1,3.06]
[1763230592339,2.74666822,143.17,143.1,3.06]
[1763230592933,0.04406405,143.15,143.13,3.06]
[1763230593836,4.13073227,143.15,143.12,3.11171968]
[1763230595138,1.34,143.14,143.12,3.11171968]
[1763230597454,1.34,143.14,143.12,3.29171968]
[1763230597643,1.38406405,143.15,143.12,3.29171968]
[1763230597848,4.13073227,143.15,143.12,3.29171968]
[1763230598246,1.34,143.14,143.12,3.29171968]
[1763230598550,4.13073227,143.15,143.12,3.29171968]
[1763230598749,1.34,143.14,143.12,3.29171968]
[1763230601049,0.04406405,143.15,143.12,3.29171968]
[1763230601349,1.38406405,143.15,143.12,3.29171968]
[1763230609255,1.34,143.13,143.06,3.24]
[1763230609450,1.34,143.11,143.06,3.24]
[1763230610256,0.04991986,143.1,143.08,3.24]
[1763230613251,1.38991986,143.1,143.07,3.28925041]
[1763230613450,4.13658808,143.1,143.07,0.04925041]
[1763230613656,1.34,143.09,143.07,0.04925041]
[1763230613856,1.34,143.07,142.99,3.24]
[1763230614251,2.74666822,143.06,142.99,3.24]
[1763230614454,1.34,143.05,142.99,3.24]
[1763230614853,0.04549214,143.03,143.01,3.28614219]
[1763230615450,1.38549214,143.03,143.01,0.04614219]
[1763230620353,4.13216036,143.03,143.01,0.04614219]
[1763230620763,0.04549214,143.03,143.01,3.28614219]
[1763230621363,0.04549214,143.03,143.01,4.68614219]
[1763230621662,1.38549214,143.03,143.01,0.04614219]
[1763230622361,1.34,143.02,143.01,0.04614219]
[1763230624168,0.04549214,143.03,143.01,3.22614219]
[1763230636471,1.36549214,143.03,143.01,3.22614219]
[1763230636670,1.36549214,143.03,143.01,0.04614219]
[1763230637975,1.36549214,143.03,142.98,3.18]
[1763230638366,1.36549214,143.03,142.96,3.18]
[1763230638567,1.32,143.01,142.96,3.18]
[1763230638874,1.36793261,143.0,142.97,0.04986001]
[1763230639878,1.36793261,143.0,142.97,3.22986001]
[1763230640764,1.36793261,143.0,142.97,0.04986001]
[1763230641671,1.36793261,143.0,142.97,3.22986001]
[1763230642476,0.04793261,143.0,142.97,3.22986001]
[1763230643362,0.04793261,143.0,142.99,3.18]
[1763230643770,1.36793261,143.0,142.97,0.04986001]
[1763230645278,1.32,142.98,142.97,0.04986001]
[1763230652478,0.04793261,143.0,142.97,0.04986001]
[1763230652684,1.32,142.99,142.97,0.04986001]
[1763230653875,1.81032639,143.0,142.97,0.04986001]
[1763230653876,3.08239378,142.98,142.97,0.04986001]
[1763230654678,1.34,142.97,142.95,2.05820342]
[1763230655783,1.34,142.97,142.95,2.10997607]
[1763230658972,0.04793261,143.0,142.95,5.45997607]
[1763230659171,1.34,142.99,142.95,5.45997607]
[1763230660379,1.34,142.97,142.95,2.10997607]
[1763230666991,1.38793261,143.0,142.96,3.35]
[1763230667192,1.76239378,142.98,142.96,3.35]
[1763230667487,3.10239378,142.98,142.95,5.45997607]
[1763230668293,1.34,142.97,142.95,5.45997607]
[1763230670292,1.34,142.97,142.95,2.10997607]
[1763230672190,3.10239378,142.96,142.95,2.10997607]
[1763230673589,3.10239378,142.96,142.95,2.06185376]
[1763230674490,3.10239378,142.96,142.95,1.24663296]
[1763230675690,1.34,142.95,142.9,3.35]
[1763230675890,1.76239378,142.93,142.9,3.35]
[1763230676093,3.10239378,142.93,142.9,3.35]
[1763230676588,3.15130984,142.93,142.9,3.39458652]
[1763230677198,0.04891606,142.93,142.9,3.39458652]
[1763230680095,1.38891606,142.93,142.9,3.39458652]
[1763230680399,3.15130984,142.93,142.9,3.39458652]
[1763230680788,1.81130984,142.93,142.9,3.39458652]
[1763230680998,0.04891606,142.93,142.9,3.39458652]
[1763230689503,1.76239378,142.92,142.9,3.39458652]
[1763230692404,1.81130984,142.93,142.9,3.39458652]
[1763230692804,1.34,142.92,142.9,0.04458652]
[1763230693000,3.10239378,142.91,142.9,0.04458652]
[1763230698901,1.35,142.9,142.85,3.11]
[1763230699109,1.35,142.88,142.85,3.11]
[1763230699401,3.11239378,142.88,142.85,3.11]
[1763230699613,1.76239378,142.86,142.85,3.11]
[1763230702417,3.11239378,142.86,142.84,0.04475279]
[1763230702619,3.11239378,142.86,142.84,3.15475279]
[1763230702915,1.35,142.86,142.84,3.15475279]
[1763230703116,1.35,142.86,142.84,0.04475279]
[1763230703711,4.1100845,142.85,142.84,0.04475279]
[1763230706209,1.35,142.84,142.73,3.11]
[1763230706409,4.1100845,142.82,142.73,3.11]
[1763230707112,0.04986358,142.79,142.77,3.11]
[1763230715627,4.1100845,142.86,142.78,3.09]
[1763230715832,4.45,142.81,142.78,3.09]
[1763230716831,4.49995692,142.81,142.78,3.13802035]
[1763230718827,4.49995692,142.81,142.79,3.09]
[1763230719531,1e-08,142.81,142.79,3.09]
[1763230719930,1e-08,142.81,142.8,3.09]
[1763230720727,1e-08,142.81,142.8,4.49]
[1763230727631,1e-08,142.81,142.8,24.09]
[1763230728539,4.93,142.85,142.81,3.09]
[1763230729548,0.05085838,142.84,142.83,3.09]
[1763230730042,3.30085838,142.84,142.82,3.13406345]
[1763230730342,0.05085838,142.84,142.82,3.13406345]
[1763230732351,3.30085838,142.84,142.82,0.04406345]
[1763230732650,0.05085838,142.84,142.82,3.13406345]
[1763230740358,0.05085838,142.84,142.83,3.09]
[1763230743560,3.25,142.89,142.83,3.09]
[1763230743751,9.74291121,142.91,142.83,3.09]
[1763230743947,3.25,142.91,142.84,3.13]
[1763230744662,0.04931734,142.89,142.87,3.13]
[1763230747968,3.30931734,142.89,142.86,3.18155299]
[1763230748465,6.06940184,142.89,142.86,0.05155299]
[1763230748675,3.26,142.88,142.86,0.05155299]
[1763230750162,3.30931734,142.89,142.86,3.18155299]
[1763230751160,3.30931734,142.89,142.86,0.05155299]
[1763230751361,3.26,142.87,142.86,0.05155299]
[1763230755369,3.20931734,142.89,142.86,0.05155299]
[1763230755563,3.16,142.87,142.86,0.05155299]
[1763230757874,2.7600845,142.88,142.86,0.05155299]
[1763230758082,3.16,142.88,142.86,0.05155299]
[1763230758776,5.9200845,142.88,142.86,0.05155299]
[1763230758984,3.16,142.87,142.86,0.05155299]
[1763230768582,4.56,142.87,142.86,0.05155299]
[1763230769086,4.56,142.87,142.81,3.29]
[1763230769285,3.16,142.85,142.81,3.29]
[1763230770191,3.20785357,142.84,142.82,0.05101987]
[1763230771700,4.92593218,142.83,142.82,0.05101987]
[1763230771988,3.20785357,142.84,142.82,3.34101987]
[1763230772192,3.20785357,142.84,142.82,0.05101987]
[1763230777295,8.12520292,142.83,142.82,0.05101987]
[1763230784001,9.8911351,142.83,142.82,0.05101987]
[1763230785106,3.19,142.82,142.77,3.08]
[1763230785313,3.19,142.8,142.77,3.08]
[1763230785503,8.12520292,142.79,142.77,3.08]
[1763230785704,4.93520292,142.78,142.77,3.08]
[1763230786108,3.23795149,142.79,142.77,3.08]
[1763230786307,3.23795149,142.79,142.76,3.1249386]
[1763230786308,4.93520292,142.78,142.76,3.1249386]
[1763230786814,8.12520292,142.78,142.76,3.1249386]
[1763230787310,3.19,142.78,142.76,3.1249386]
[1763230789518,3.19,142.78,142.76,0.0449386]
[1763230790420,3.19,142.78,142.76,3.1249386]
[1763230791218,8.12520292,142.78,142.76,0.0449386]
[1763230792405,3.19,142.77,142.76,0.0449386]
[1763230794512,4.98315441,142.79,142.76,3.1249386]
[1763230794714,0.04795149,142.79,142.78,3.08]
[1763230797326,4.98315441,142.79,142.78,3.08]
[1763230798824,3.19,142.78,142.76,0.0449386]
[1763230799828,4.98315441,142.79,142.76,0.0449386]
[1763230799829,4.98315441,142.79,142.76,3.1249386]
[1763230800124,8.17315441,142.79,142.76,3.1249386]
[1763230800626,8.18293586,142.79,142.76,3.1249386]
[1763230801526,3.19,142.78,142.76,3.1249386]
[1763230803421,8.13498437,142.78,142.76,0.0449386]
[1763230804315,8.13498437,142.78,142.76,3.3249386]
[1763230806222,4.99293586,142.79,142.77,3.28]
[1763230806928,0.04795149,142.79,142.77,3.28]
[1763230807324,4.99293586,142.79,142.77,3.28]
[1763230807526,0.04795149,142.79,142.77,3.28]
[1763230809441,4.99293586,142.79,142.77,3.28]
[1763230812234,0.04795149,142.79,142.77,3.28]
[1763230812434,4.95610835,142.78,142.77,3.28]
[1763230812634,0.04795149,142.79,142.77,3.28]
[1763230812939,3.1,142.83,142.78,4.87593218]
[1763230813126,3.1,142.83,142.78,3.11]
[1763230813332,3.1,142.83,142.76,11.41070899]
[1763230813633,1.76593218,142.82,142.76,4.87593218]
[1763230813829,3.1,142.79,142.78,0.05289452]
[1763230815131,0.04537041,142.8,142.78,3.16289452]
[1763230815435,3.14537041,142.8,142.78,0.05289452]
[1763230815633,3.1,142.79,142.78,0.05289452]
[1763230816029,3.1,142.78,142.7,6.53477681]
[1763230816330,3.1,142.74,142.69,3.11]
[1763230816730,3.1,142.74,142.67,11.41070899]
[1763230816929,0.050198,142.72,142.69,0.05062786]
[1763230817238,3.150198,142.72,142.69,0.05062786]
[1763230820240,3.1,142.71,142.69,0.05062786]
[1763230826042,3.1,142.69,142.66,2.08570936]
[1763230826239,3.1,142.69,142.6,3.11]
[1763230826548,3.1,142.67,142.6,3.11]
[1763230827037,3.15359891,142.65,142.62,0.0522929]
[1763230827437,3.15359891,142.65,142.62,3.1622929]
[1763230827647,0.05359891,142.65,142.62,3.1622929]
[1763230827952,3.15359891,142.65,142.62,3.1622929]
[1763230828151,0.05359891,142.65,142.62,3.1622929]
[1763230828544,3.1,142.73,142.64,3.11]
[1763230828747,3.1,142.73,142.67,3.11]
[1763230829250,3.1,142.73,142.64,3.11]
[1763230829452,3.1,142.69,142.67,0.04469877]
[1763230829650,0.04730353,142.7,142.67,3.15469877]
[1763230829847,3.14730353,142.7,142.67,3.15469877]
[1763230830046,3.14730353,142.7,142.67,0.04469877]
[1763230830558,3.1,142.69,142.67,0.04469877]
[1763230833254,0.04730353,142.7,142.67,3.15469877]
[1763230835163,3.19730353,142.7,142.67,0.04469877]
[1763230837862,3.19730353,142.7,142.67,3.08469877]
[1763230841566,0.04730353,142.7,142.67,3.08469877]
[1763230841957,0.04730353,142.7,142.68,3.04]
[1763230843769,3.19730353,142.7,142.67,3.08469877]
[1763230843966,0.04730353,142.7,142.67,3.08469877]
[1763230846173,3.19730353,142.7,142.67,3.08469877]
[1763230849265,3.19730353,142.7,142.67,0.04469877]
[1763230851374,3.19730353,142.7,142.67,3.08469877]
[1763230851774,3.19730353,142.7,142.67,0.04469877]
[1763230854173,8.08135507,142.7,142.67,0.04469877]
[1763230854369,3.15,142.69,142.67,0.04469877]
[1763230856977,3.15,142.69,142.67,3.08469877]
[1763230857168,8.03405154,142.69,142.67,3.08469877]
[1763230857572,4.93135507,142.7,142.67,3.08469877]
[1763230858176,4.88405154,142.69,142.67,3.08469877]
[1763230859173,4.88405154,142.68,142.67,3.08469877]
[1763230859382,4.88405154,142.69,142.67,3.08469877]
[1763230859581,4.88405154,142.68,142.67,3.08469877]
[1763230859780,4.88405154,142.69,142.67,3.08469877]
[1763230859979,4.88405154,142.68,142.67,3.08469877]
[1763230860575,4.94012144,142.7,142.67,3.08469877]
[1763230860781,4.89,142.71,142.69,3.04]
[1763230861676,4.94321499,142.71,142.69,3.04]
[1763230862486,3.15,142.7,142.67,0.04469877]
[1763230863380,3.15,142.76,142.7,3.04]
[1763230863576,4.5519539,142.75,142.7,3.04]
[1763230863776,3.15,142.75,142.7,3.04]
[1763230863984,1.4019539,142.74,142.7,3.04]
[1763230864481,1.44869928,142.73,142.71,3.20840972]
[1763230864684,0.04674538,142.73,142.71,3.20840972]
[1763230864881,1.44869928,142.73,142.71,3.20840972]
[1763230867780,0.04674538,142.73,142.72,3.16]
[1763230868086,4.64,142.76,142.72,3.16]
[1763230868087,7.98,142.76,142.72,3.16]
[1763230868295,7.98,142.76,142.71,3.20840972]
[1763230868296,3.34,142.74,142.71,3.20840972]
[1763230868883,3.38594736,142.74,142.71,3.20840972]
[1763230869186,1.4019539,142.73,142.71,3.20840972]
[1763230869593,1.4019539,142.72,142.71,0.04840972]
[1763230869780,4.7419539,142.73,142.71,0.04840972]
[1763230870079,2.76625274,142.72,142.64,9.69477681]
[1763230870283,3.34,142.69,142.61,5.92625274]
[1763230870693,3.34,142.67,142.61,5.92625274]
[1763230871086,4.7419539,142.66,142.62,3.16]
[1763230871285,4.7419539,142.66,142.63,3.20573516]
[1763230871286,0.0514181,142.65,142.63,3.20573516]
[1763230871484,1.453372,142.65,142.63,3.20573516]
[1763230871884,1.4019539,142.64,142.63,3.20573516]
[1763230872081,1.453372,142.65,142.63,3.20573516]
[1763230872281,1.453372,142.65,142.64,3.06]
[1763230872887,0.0514181,142.65,142.64,3.06]
[1763230875298,3.3,142.69,142.64,3.06]
[1763230875492,1.4019539,142.69,142.67,5.82625274]
[1763230875793,3.3,142.72,142.68,3.06]
[1763230875994,4.7019539,142.71,142.68,3.06]
[1763230876193,3.3,142.71,142.68,3.06]
[1763230876395,3.34908426,142.71,142.68,3.11011537]
[1763230876691,1.4019539,142.7,142.68,3.11011537]
[1763230877088,1.4019539,142.69,142.68,3.11011537]
[1763230877396,1.4019539,142.7,142.68,3.11011537]
[1763230877597,3.34908426,142.71,142.68,3.11011537]
[1763230877897,1.4019539,142.7,142.68,3.11011537]
[1763230878288,3.34908426,142.71,142.68,3.11011537]
[1763230878489,1.4019539,142.7,142.68,3.11011537]
[1763230878996,1.4019539,142.69,142.68,3.11011537]
[1763230879195,1.4019539,142.7,142.68,3.11011537]
[1763230879596,1.4019539,142.69,142.68,3.11011537]
[1763230879797,1.4019539,142.7,142.68,3.11011537]
[1763230879998,3.34908426,142.71,142.68,3.11011537]
[1763230880200,8.18727293,142.71,142.68,3.11011537]
[1763230880496,3.34908426,142.71,142.68,3.11011537]
[1763230880699,1.4019539,142.7,142.68,3.11011537]
[1763230881090,3.34908426,142.71,142.68,3.11011537]
[1763230881091,1.4019539,142.69,142.68,3.11011537]
[1763230881389,6.24014257,142.7,142.68,3.11011537]
[1763230881701,3.3,142.68,142.63,3.06]
[1763230881903,3.3,142.67,142.63,3.06]
[1763230882198,3.3,142.66,142.63,3.06]
[1763230882498,4.65183853,142.66,142.63,3.06]
[1763230882698,1.35183853,142.65,142.63,3.1129825]
[1763230883284,3.34905358,142.66,142.63,3.1129825]
[1763230883488,1.35183853,142.65,142.63,3.1129825]
[1763230883889,1.35183853,142.64,142.63,3.1129825]
[1763230884093,3.3,142.64,142.63,0.0529825]
[1763230884295,4.65183853,142.64,142.63,0.0529825]
[1763230887697,4.65183853,142.64,142.55,420.75503734]
[1763230887698,3.3,142.63,142.55,3.06]
[1763230887901,3.3,142.61,142.55,3.06]
[1763230888291,4.65183853,142.6,142.55,3.06]
[1763230888490,3.3,142.6,142.55,3.06]
[1763230888695,1.39795006,142.59,142.57,3.06]
[1763230889099,1.35183853,142.58,142.57,3.06]
[1763230891297,1.35183853,142.58,142.56,3.10637328]
[1763230891494,1.35183853,142.57,142.56,0.04637328]
[1763230891694,4.65183853,142.58,142.56,0.04637328]
[1763230892099,1.35183853,142.57,142.56,0.04637328]
[1763230893198,4.65183853,142.57,142.53,3.06]
[1763230893506,0.04611153,142.59,142.53,3.06]
[1763230893507,4.65183853,142.56,142.53,3.06]
[1763230893805,3.3,142.56,142.53,3.06]
[1763230894004,1.35183853,142.55,142.53,3.06]
[1763230894208,1.40155767,142.55,142.53,3.1079856]
[1763230894396,3.28,142.62,142.54,4.8215496]
[1763230894703,3.28,142.62,142.56,4.8215496]
[1763230894894,3.28,142.6,142.57,3.05]
[1763230895300,1.35183853,142.59,142.57,3.05]
[1763230895605,4.6798803,142.59,142.57,0.05369281]
[1763230895797,1.35183853,142.58,142.57,0.05369281]
[1763230897008,4.63183853,142.58,142.57,0.05369281]
[1763230897407,1.35183853,142.58,142.57,0.05369281]
[1763230899814,1.35183853,142.58,142.57,3.10369281]
[1763230900110,1.35183853,142.58,142.57,0.05369281]
[1763230901416,1.35183853,142.58,142.57,3.10369281]
[1763230902013,3.28,142.65,142.58,3.05]
[1763230902213,3.28,142.65,142.6,4.8215496]
[1763230903116,3.28,142.63,142.61,0.04880977]
[1763230903612,3.28,142.63,142.52,6.53477681]
[1763230903922,2.9,142.55,142.48,1.7715496]
[1763230904123,2.9,142.55,142.48,4.8215496]
[1763230904320,2.9,142.55,142.49,3.05]
[1763230904620,0.04508583,142.53,142.51,3.10196026]
[1763230908915,0.04508583,142.53,142.51,0.05196026]
[1763230909122,2.94508583,142.53,142.51,0.05196026]
[1763230909320,2.94508583,142.53,142.45,3.05]
[1763230909521,2.9,142.53,142.45,3.05]
[1763230910320,2.95292851,142.5,142.48,0.04747741]
[1763230910720,0.05292851,142.5,142.48,0.04747741]
[1763230910915,0.05292851,142.5,142.48,3.09747741]
[1763230911413,2.9,142.56,142.48,3.09747741]
[1763230911615,2.9,142.56,142.5,4.3110673]
[1763230912416,2.9,142.56,142.49,3.05]
[1763230912612,0.04515943,142.54,142.51,0.04553664]
[1763230912811,2.94515943,142.54,142.51,0.04553664]
[1763230913010,2.94515943,142.54,142.51,3.09553664]
[1763230913222,2.94515943,142.54,142.51,0.04553664]
[1763230920425,2.9,142.53,142.51,0.04553664]
[1763230921231,2.9,142.52,142.45,3.05]
[1763230922331,2.9,142.49,142.47,0.04828634]
[1763230922629,2.9,142.49,142.42,3.05]
[1763230923428,0.04827959,142.47,142.44,0.04460762]
[1763230923631,2.9,142.46,142.44,0.04460762]
[1763230923821,0.04827959,142.47,142.44,3.09460762]
[1763230925238,2.9,142.52,142.45,3.05]
[1763230925526,2.9,142.54,142.45,3.05]
[1763230925726,2.9,142.53,142.45,3.05]
[1763230926232,0.05175568,142.5,142.48,3.09800832]
[1763230928229,0.05175568,142.5,142.48,0.04800832]
[1763230928423,0.05175568,142.5,142.48,3.09800832]
[1763230930124,7.92442199,142.56,142.48,3.09800832]
[1763230930326,5.02442199,142.55,142.48,3.05]
[1763230930930,7.92442199,142.55,142.51,3.05]
[1763230931124,0.05139179,142.54,142.52,0.04886766]
[1763230931527,0.05139179,142.54,142.52,3.09886766]
[1763230931732,5.02442199,142.59,142.53,3.18]
[1763230932029,7.92442199,142.6,142.56,4.95361029]
[1763230932235,7.92442199,142.59,142.56,4.95361029]
[1763230932536,2.9,142.59,142.56,4.95361029]
[1763230932735,7.92442199,142.59,142.56,4.95361029]
[1763230932935,2.94491087,142.59,142.56,5.00310709]
[1763230933138,7.96933286,142.59,142.56,5.00310709]
[1763230933436,2.94491087,142.59,142.56,5.00310709]
[1763230933635,7.96933286,142.59,142.56,5.00310709]
[1763230933837,2.94491087,142.59,142.56,5.00310709]
[1763230934038,7.96933286,142.59,142.56,5.00310709]
[1763230934341,2.94491087,142.59,142.56,5.00310709]
[1763230934635,7.96933286,142.59,142.56,5.00310709]
[1763230934835,2.94491087,142.59,142.56,3.2294968]
[1763230935040,5.06933286,142.59,142.56,3.2294968]
[1763230935240,0.04491087,142.59,142.56,3.2294968]
[1763230938534,5.02442199,142.62,142.58,3.27]
[1763230938731,11.12878,142.63,142.6,3.27]
[1763230939033,11.12878,142.63,142.62,3.27]
[1763230939534,11.12878,142.63,142.52,33.91224598]
[1763230939535,2.9,142.62,142.61,0.05371151]
[1763230939734,2.9,142.62,142.58,7.57779787]
[1763230939735,2.9,142.62,142.6,0.05159334]
[1763230941034,11.17707186,142.63,142.6,3.32159334]
[1763230942424,1.45505172,142.63,142.61,3.27]
[1763230942631,7.49779787,142.72,142.62,3.27]
[1763230943634,0.04438572,142.68,142.66,3.31810934]
[1763230944928,3.19,142.67,142.59,3.27]
[1763230945937,0.04619667,142.64,142.62,0.05203476]
[1763230946631,0.04619667,142.64,142.62,3.32203476]
[1763230950039,0.04619667,142.64,142.62,0.05203476]
[1763230951741,0.04619667,142.64,142.62,3.32203476]
[1763230979251,5.01282758,142.64,142.62,3.32203476]
[1763230979460,0.04619667,142.64,142.62,3.32203476]
[1763230979855,5.01282758,142.64,142.62,3.32203476]
[1763230980054,0.04619667,142.64,142.62,3.32203476]
[1763230980456,5.01282758,142.64,142.62,3.32203476]
[1763230980656,0.04619667,142.64,142.62,3.32203476]
[1763230981056,5.01282758,142.64,142.62,3.32203476]
[1763230981256,0.04619667,142.64,142.62,3.32203476]
[1763230983165,4.94388093,142.63,142.62,3.32203476]
[1763230983360,0.04619667,142.64,142.62,3.32203476]
[1763230985369,3.06,142.71,142.64,3.32]
[1763230986066,3.06,142.71,142.65,3.32]
[1763230986263,0.05129295,142.69,142.68,3.32]
[1763230990869,3.06,142.74,142.68,3.32]
[1763230991968,0.04532776,142.72,142.68,3.32]
[1763230992568,3.22532776,142.72,142.67,3.37738114]
[1763230993162,0.04532776,142.72,142.69,3.33]
[1763230996870,0.04532776,142.72,142.69,6.09725073]
[1763230997073,0.04532776,142.72,142.7,3.33]
[1763230999775,0.04532776,142.72,142.67,27.55640835]
[1763230999776,3.22532776,142.72,142.67,0.04738114]
[1763230999971,3.18,142.7,142.67,0.04738114]
[1763231000179,3.18,142.68,142.67,0.04738114]
[1763231000575,3.18,142.68,142.63,3.33]
[1763231001376,3.18,142.67,142.63,3.33]
[1763231001578,3.18,142.67,142.64,3.37456421]
[1763231001769,3.22421867,142.67,142.64,3.37456421]
[1763231006480,0.04421867,142.67,142.64,3.37456421]
[1763231006669,3.22421867,142.67,142.64,3.37456421]
[1763231008268,0.04421867,142.67,142.64,3.37456421]
[1763231008874,0.04421867,142.67,142.66,3.33]
[1763231014383,0.04421867,142.67,142.66,5.09985717]
[1763231015077,4.97267162,142.73,142.67,3.27]
[1763231015278,3.27,142.73,142.69,3.27]
[1763231015479,1.76985717,142.74,142.69,3.27]
[1763231015480,8.24267162,142.76,142.69,3.27]
[1763231015681,8.24267162,142.75,142.71,3.27]
[1763231015880,3.27,142.75,142.71,3.27]
[1763231016083,0.04857581,142.74,142.72,3.32057522]
[1763231022389,5.02124743,142.74,142.72,3.32057522]
[1763231022989,0.04857581,142.74,142.72,3.32057522]
[1763231025585,5.02124743,142.74,142.72,3.32057522]
[1763231026591,8.29124743,142.74,142.72,0.05057522]
[1763231026793,3.27,142.73,142.72,0.05057522]
[1763231027185,10.01252879,142.73,142.72,0.05057522]
[1763231031199,8.24267162,142.73,142.72,0.05057522]
[1763231041102,8.24508439,142.73,142.72,0.05057522]
[1763231048109,10.01494156,142.73,142.65,9.61902721]
[1763231048305,1.76985717,142.71,142.65,3.11]
[1763231048510,3.33,142.69,142.65,3.11]
[1763231048711,8.30508439,142.68,142.65,3.11]
[1763231048913,3.33,142.68,142.65,3.11]
[1763231049112,8.30508439,142.68,142.65,3.11]
[1763231049313,8.35279834,142.68,142.65,3.15527927]
[1763231050015,4.97508439,142.67,142.65,3.15527927]
[1763231050210,5.00055793,142.66,142.65,3.15527927]
[1763231050415,5.00055793,142.66,142.65,0.04527927]
[1763231050719,8.33055793,142.66,142.65,0.04527927]
[1763231050922,3.33,142.66,142.65,0.04527927]
[1763231051113,8.33055793,142.66,142.65,0.04527927]
[1763231053125,3.33,142.66,142.65,0.04527927]
[1763231053425,8.33055793,142.66,142.65,0.04527927]
[1763231060420,3.33,142.66,142.65,0.04527927]
[1763231060625,8.3541603,142.66,142.65,0.04527927]
[1763231061532,5.0241603,142.66,142.65,3.39527927]
[1763231061828,8.3141603,142.67,142.65,3.39527927]
[1763231062129,5.0241603,142.66,142.65,3.39527927]
[1763231063530,5.0241603,142.66,142.65,0.04527927]
[1763231064129,8.3141603,142.67,142.65,0.04527927]
[1763231065034,3.29,142.66,142.65,0.04527927]
[1763231067235,8.3141603,142.66,142.65,0.04527927]
[1763231067429,3.29,142.66,142.61,5.11985717]
[1763231067625,6.79401747,142.67,142.62,3.35]
[1763231067626,3.29,142.64,142.62,3.35]
[1763231068326,3.29,142.63,142.6,3.35]
[1763231068526,3.29,142.63,142.62,0.05170928]
[1763231083035,3.36,142.62,142.57,3.15]
[1763231083435,3.36,142.62,142.55,3.15]
[1763231084147,3.36,142.59,142.57,3.19907009]
[1763231088644,0.05084322,142.6,142.59,3.15]
[1763231095557,5.16398091,142.62,142.59,3.15]
[1763231095762,3.36,142.64,142.59,3.15]
[1763231095952,5.16422174,142.63,142.59,3.15]
[1763231096251,5.16422174,142.62,142.59,3.15]
[1763231096556,0.04486781,142.62,142.59,3.19815473]
[1763231098157,5.1665715,142.61,142.59,3.19815473]
[1763231098350,0.04486781,142.62,142.59,3.19815473]
[1763231098545,5.16657292,142.61,142.59,3.19815473]
[1763231098748,0.04486781,142.62,142.59,3.19815473]
[1763231098946,0.04486781,142.62,142.61,3.15]
[1763231100358,3.36,142.66,142.61,3.15]
[1763231100661,8.64324324,142.65,142.61,3.15]
[1763231100855,3.36,142.63,142.6,3.15]
[1763231101059,3.36,142.61,142.58,3.15]
[1763231101254,3.36,142.59,142.57,3.15]
[1763231101561,5.28391978,142.58,142.57,0.0472345]
[1763231102060,5.28391978,142.58,142.57,3.1972345]
[1763231104161,5.08099836,142.58,142.57,3.1972345]
[1763231104358,0.04677668,142.59,142.57,3.1972345]
[1763231104556,0.04677668,142.59,142.58,5.88790964]
[1763231105554,3.12,142.64,142.58,5.88790964]
[1763231106662,0.04625926,142.62,142.59,3.12]
[1763231106959,0.04625926,142.62,142.59,3.16925406]
[1763231110264,0.04625926,142.62,142.61,5.88790964]
[1763231110465,0.04625926,142.62,142.61,3.12]
[1763231110670,0.04625926,142.62,142.61,5.88790964]
[1763231111666,0.04625926,142.62,142.61,3.12]
[1763231115565,3.12,142.64,142.61,3.12]
[1763231116162,5.2842566,142.63,142.61,3.12]
[1763231116366,5.2842566,142.62,142.61,3.12]